[Event "Titled Tuesday Blitz May 2 Early 2023"]
[White "Suyarov, Mukhammadzokhid"]
[Black "Chigaev, Maksim"]
[WhiteFideId "14210495"]
[BlackFideId "4108116"]
[WhiteElo "2361"]
[BlackElo "2547"]
[Result "1-0"]
[Round "10"]
[TimeControl "180+2"]
[Date "2023.05.03"]
[WhiteClock "0:00:00"]
[BlackClock "0:00:00"]

1. d4 {[%clk 0:00:01]}  Nf6 {[%clk 0:00:01]} 2. Nc3 {[%clk 0:00:01]}  d5 {[%clk 0:00:01]} 3. Bf4 {[%clk 0:00:01]}  g6 {[%clk 0:00:01]} 4. Qd2 {[%clk 0:00:01]}  c6 {[%clk 0:00:01]} 5. f3 {[%clk 0:00:01]}  b5 {[%clk 0:00:01]} 6. a3 {[%clk 0:00:01]}  a5 {[%clk 0:00:01]} 7. e4 {[%clk 0:00:01]}  e6 {[%clk 0:00:01]} 8. e5 {[%clk 0:00:01]}  Nfd7 {[%clk 0:00:01]} 9. h4 {[%clk 0:00:01]}  h6 {[%clk 0:00:01]} 10. Nh3 {[%clk 0:00:01]}  Nb6 {[%clk 0:00:01]} 11. Nd1 {[%clk 0:00:01]}  N8d7 {[%clk 0:00:01]} 12. Nhf2 {[%clk 0:00:01]}  Bb7 {[%clk 0:00:01]} 13. Bd3 {[%clk 0:00:01]}  b4 {[%clk 0:00:01]} 14. axb4 {[%clk 0:00:01]}  axb4 {[%clk 0:00:01]} 15. Rxa8 {[%clk 0:00:01]}  Qxa8 {[%clk 0:00:01]} 16. O-O {[%clk 0:00:01]}  Qd8 {[%clk 0:00:01]} 17. h5 {[%clk 0:00:01]}  gxh5 {[%clk 0:00:01]} 18. Ne3 {[%clk 0:00:01]}  c5 {[%clk 0:00:01]} 19. c3 {[%clk 0:00:01]}  c4 {[%clk 0:00:01]} 20. Be2 {[%clk 0:00:01]}  b3 {[%clk 0:00:00]} 21. Bh2 {[%clk 0:00:01]}  Rg8 {[%clk 0:00:00]} 22. f4 {[%clk 0:00:01]}  Qh4 {[%clk 0:00:00]} 23. Kh1 {[%clk 0:00:01]}  Kd8 {[%clk 0:00:00]} 24. Nh3 {[%clk 0:00:01]}  Kc8 {[%clk 0:00:00]} 25. f5 {[%clk 0:00:01]}  Na4 {[%clk 0:00:00]} 26. Rf4 {[%clk 0:00:01]}  Qe7 {[%clk 0:00:00]} 27. Bxh5 {[%clk 0:00:01]}  f6 {[%clk 0:00:00]} 28. fxe6 {[%clk 0:00:00]}  Qxe6 {[%clk 0:00:00]} 29. Bg4 {[%clk 0:00:00]}  Rxg4 {[%clk 0:00:00]} 30. Nxg4 {[%clk 0:00:00]}  h5 {[%clk 0:00:00]} 31. Nxf6 {[%clk 0:00:00]}  Bh6 {[%clk 0:00:00]} 32. Nxd7 {[%clk 0:00:00]}  Qxd7 {[%clk 0:00:00]} 33. Bg3 {[%clk 0:00:00]}  Bc6 {[%clk 0:00:00]} 34. Ng5 {[%clk 0:00:00]}  Bxg5 {[%clk 0:00:00]} 35. Rf8+ {[%clk 0:00:00]}  Bd8 {[%clk 0:00:00]} 36. Bh4 {[%clk 0:00:00]}  Qg4 {[%clk 0:00:00]} 37. Bxd8 {[%clk 0:00:00]}  Kb7 {[%clk 0:00:00]} 38. Rf7+ {[%clk 0:00:00]}  Bd7 {[%clk 0:00:00]} 39. Qg5 {[%clk 0:00:00]}  Qxg5 {[%clk 0:00:00]} 40. Bxg5 {[%clk 0:00:00]}  Kc8 {[%clk 0:00:00]} 41. Bc1 {[%clk 0:00:00]}  Bg4 {[%clk 0:00:00]} 42. Kh2 {[%clk 0:00:00]}  Nb6 {[%clk 0:00:00]} 43. Kg3 {[%clk 0:00:00]}  Kd8 {[%clk 0:00:00]} 44. Kh4 {[%clk 0:00:00]}  Ke8 {[%clk 0:00:00]} 45. Rf6 {[%clk 0:00:00]}  Nd7 {[%clk 0:00:00]} 46. Rd6 {[%clk 0:00:00]}  Ke7 {[%clk 0:00:00]} 47. Rxd5 {[%clk 0:00:00]}  Ke6 {[%clk 0:00:00]} 1-0


[Site "https://www.chess.com"]

[Event "Titled Tuesday Blitz May 2 Early 2023"]
[White "Indjic, Aleksandar"]
[Black "Henriquez Villagra, Cristobal"]
[WhiteFideId "911925"]
[BlackFideId "3409350"]
[WhiteElo "2614"]
[BlackElo "2542"]
[Result "1-0"]
[Round "10"]
[TimeControl "180+2"]
[Date "2023.05.03"]
[WhiteClock "0:00:01"]
[BlackClock "0:00:01"]

1. d4 {[%clk 0:00:01]}  Nf6 {[%clk 0:00:01]} 2. Nf3 {[%clk 0:00:01]}  g6 {[%clk 0:00:01]} 3. Bg5 {[%clk 0:00:01]}  Bg7 {[%clk 0:00:01]} 4. Nbd2 {[%clk 0:00:01]}  O-O {[%clk 0:00:01]} 5. c3 {[%clk 0:00:01]}  d6 {[%clk 0:00:01]} 6. e4 {[%clk 0:00:01]}  c5 {[%clk 0:00:01]} 7. d5 {[%clk 0:00:01]}  e6 {[%clk 0:00:01]} 8. Bc4 {[%clk 0:00:01]}  h6 {[%clk 0:00:01]} 9. Bxf6 {[%clk 0:00:01]}  Qxf6 {[%clk 0:00:01]} 10. dxe6 {[%clk 0:00:01]}  Bxe6 {[%clk 0:00:01]} 11. O-O {[%clk 0:00:01]}  Nc6 {[%clk 0:00:01]} 12. Re1 {[%clk 0:00:01]}  Qe7 {[%clk 0:00:01]} 13. Bd5 {[%clk 0:00:01]}  Rac8 {[%clk 0:00:01]} 14. a4 {[%clk 0:00:01]}  Rfd8 {[%clk 0:00:01]} 15. Nc4 {[%clk 0:00:01]}  Bd7 {[%clk 0:00:01]} 16. Nxd6 {[%clk 0:00:01]} 1-0


[Site "https://www.chess.com"]

[Event "Titled Tuesday Blitz May 2 Early 2023"]
[White "Bachmann, Axel"]
[Black "Rakotomaharo, Fy Antenaina"]
[WhiteFideId "3700488"]
[BlackFideId "13100050"]
[WhiteElo "2605"]
[BlackElo "2427"]
[Result "0-1"]
[Round "10"]
[TimeControl "180+2"]
[Date "2023.05.03"]
[WhiteClock "0:00:00"]
[BlackClock "0:00:00"]

1. e4 {[%clk 0:00:01]}  c5 {[%clk 0:00:01]} 2. Nf3 {[%clk 0:00:01]}  e6 {[%clk 0:00:01]} 3. g3 {[%clk 0:00:01]}  Nc6 {[%clk 0:00:01]} 4. Bg2 {[%clk 0:00:01]}  Nf6 {[%clk 0:00:01]} 5. Qe2 {[%clk 0:00:01]}  e5 {[%clk 0:00:01]} 6. Nc3 {[%clk 0:00:01]}  Be7 {[%clk 0:00:01]} 7. O-O {[%clk 0:00:01]}  O-O {[%clk 0:00:01]} 8. Nd5 {[%clk 0:00:01]}  d6 {[%clk 0:00:01]} 9. Nxe7+ {[%clk 0:00:01]}  Qxe7 {[%clk 0:00:01]} 10. c3 {[%clk 0:00:01]}  Be6 {[%clk 0:00:01]} 11. d3 {[%clk 0:00:01]}  Rfe8 {[%clk 0:00:01]} 12. h3 {[%clk 0:00:01]}  h6 {[%clk 0:00:01]} 13. Re1 {[%clk 0:00:01]}  Rad8 {[%clk 0:00:01]} 14. a3 {[%clk 0:00:01]}  d5 {[%clk 0:00:01]} 15. b4 {[%clk 0:00:01]}  c4 {[%clk 0:00:01]} 16. dxc4 {[%clk 0:00:01]}  dxc4 {[%clk 0:00:01]} 17. a4 {[%clk 0:00:01]}  Nd7 {[%clk 0:00:00]} 18. b5 {[%clk 0:00:01]}  Na5 {[%clk 0:00:00]} 19. Ba3 {[%clk 0:00:01]}  Qf6 {[%clk 0:00:00]} 20. Rad1 {[%clk 0:00:00]}  Nb6 {[%clk 0:00:00]} 21. Bb4 {[%clk 0:00:00]}  Nb3 {[%clk 0:00:00]} 22. a5 {[%clk 0:00:00]}  Na4 {[%clk 0:00:00]} 23. Rxd8 {[%clk 0:00:00]}  Rxd8 {[%clk 0:00:00]} 24. Rd1 {[%clk 0:00:00]}  Kh7 {[%clk 0:00:00]} 25. Rxd8 {[%clk 0:00:00]}  Qxd8 {[%clk 0:00:00]} 26. Nxe5 {[%clk 0:00:00]}  Nxa5 {[%clk 0:00:00]} 27. Bf1 {[%clk 0:00:00]}  f6 {[%clk 0:00:00]} 28. Nf3 {[%clk 0:00:00]}  Nb3 {[%clk 0:00:00]} 29. Qe3 {[%clk 0:00:00]}  Qd1 {[%clk 0:00:00]} 30. Qe2 {[%clk 0:00:00]}  Qc1 {[%clk 0:00:00]} 31. Kg2 {[%clk 0:00:00]}  Nxc3 {[%clk 0:00:00]} 32. Bxc3 {[%clk 0:00:00]}  Qxc3 {[%clk 0:00:00]} 33. e5 {[%clk 0:00:00]}  Bd5 {[%clk 0:00:00]} 34. exf6 {[%clk 0:00:00]}  Nd4 {[%clk 0:00:00]} 0-1


[Site "https://www.chess.com"]

[Event "Titled Tuesday Blitz May 2 Early 2023"]
[White "Mekhitarian, Krikor Sevag"]
[Black "Paravyan, David"]
[WhiteFideId "2107660"]
[BlackFideId "4194985"]
[WhiteElo "2604"]
[BlackElo "2563"]
[Result "0-1"]
[Round "10"]
[TimeControl "180+2"]
[Date "2023.05.03"]
[WhiteClock "0:00:00"]
[BlackClock "0:00:00"]

1. Nf3 {[%clk 0:00:01]}  Nf6 {[%clk 0:00:01]} 2. c4 {[%clk 0:00:01]}  c5 {[%clk 0:00:01]} 3. Nc3 {[%clk 0:00:01]}  Nc6 {[%clk 0:00:01]} 4. g3 {[%clk 0:00:01]}  d5 {[%clk 0:00:01]} 5. cxd5 {[%clk 0:00:01]}  Nxd5 {[%clk 0:00:01]} 6. Bg2 {[%clk 0:00:01]}  g6 {[%clk 0:00:01]} 7. Qa4 {[%clk 0:00:01]}  Bg7 {[%clk 0:00:01]} 8. Qc4 {[%clk 0:00:01]}  Nxc3 {[%clk 0:00:01]} 9. dxc3 {[%clk 0:00:01]}  Qb6 {[%clk 0:00:01]} 10. O-O {[%clk 0:00:01]}  O-O {[%clk 0:00:01]} 11. Qh4 {[%clk 0:00:01]}  Rd8 {[%clk 0:00:01]} 12. Ng5 {[%clk 0:00:01]}  h5 {[%clk 0:00:01]} 13. Qf4 {[%clk 0:00:01]}  Ne5 {[%clk 0:00:01]} 14. Be3 {[%clk 0:00:00]}  Bf5 {[%clk 0:00:01]} 15. b4 {[%clk 0:00:00]}  Qc7 {[%clk 0:00:00]} 16. Bxc5 {[%clk 0:00:00]}  Bh6 {[%clk 0:00:00]} 17. h4 {[%clk 0:00:00]}  f6 {[%clk 0:00:00]} 18. Bd4 {[%clk 0:00:00]}  Rac8 {[%clk 0:00:00]} 19. Rfd1 {[%clk 0:00:00]}  b6 {[%clk 0:00:00]} 20. Bxe5 {[%clk 0:00:00]}  fxe5 {[%clk 0:00:00]} 21. Qf3 {[%clk 0:00:00]}  Bxg5 {[%clk 0:00:00]} 22. hxg5 {[%clk 0:00:00]}  Rxd1+ {[%clk 0:00:00]} 23. Rxd1 {[%clk 0:00:00]}  e4 {[%clk 0:00:00]} 24. Qe3 {[%clk 0:00:00]}  Qxc3 {[%clk 0:00:00]} 25. Qxc3 {[%clk 0:00:00]}  Rxc3 {[%clk 0:00:00]} 26. e3 {[%clk 0:00:00]}  Kf7 {[%clk 0:00:00]} 27. Rd4 {[%clk 0:00:00]}  Rc1+ {[%clk 0:00:00]} 28. Kh2 {[%clk 0:00:00]}  Rc2 {[%clk 0:00:00]} 29. Kg1 {[%clk 0:00:00]}  e5 {[%clk 0:00:00]} 30. Rd6 {[%clk 0:00:00]}  Ke7 {[%clk 0:00:00]} 31. Rd1 {[%clk 0:00:00]}  Rxa2 {[%clk 0:00:00]} 32. Rc1 {[%clk 0:00:00]}  Kd6 {[%clk 0:00:00]} 33. Bf1 {[%clk 0:00:00]}  a5 {[%clk 0:00:00]} 34. b5 {[%clk 0:00:00]}  Bd7 {[%clk 0:00:00]} 35. Rd1+ {[%clk 0:00:00]}  Ke7 {[%clk 0:00:00]} 36. Rd5 {[%clk 0:00:00]}  Ra1 {[%clk 0:00:00]} 37. Kg2 {[%clk 0:00:00]}  Be6 {[%clk 0:00:00]} 38. Rd2 {[%clk 0:00:00]}  Bg4 {[%clk 0:00:00]} 0-1


[Site "https://www.chess.com"]

[Event "Titled Tuesday Blitz May 2 Early 2023"]
[White "Averjanov, Alexey"]
[Black "Demchenko, Anton"]
[WhiteFideId "14109867"]
[BlackFideId "4160258"]
[WhiteElo "2399"]
[BlackElo "2545"]
[Result "1/2-1/2"]
[Round "10"]
[TimeControl "180+2"]
[Date "2023.05.03"]
[WhiteClock "0:00:00"]
[BlackClock "0:00:00"]

1. d4 {[%clk 0:00:01]}  Nf6 {[%clk 0:00:01]} 2. c4 {[%clk 0:00:01]}  d6 {[%clk 0:00:01]} 3. Nf3 {[%clk 0:00:01]}  Nc6 {[%clk 0:00:01]} 4. g3 {[%clk 0:00:01]}  e5 {[%clk 0:00:01]} 5. Bg2 {[%clk 0:00:01]}  Be7 {[%clk 0:00:01]} 6. O-O {[%clk 0:00:01]}  O-O {[%clk 0:00:01]} 7. Nc3 {[%clk 0:00:01]}  h6 {[%clk 0:00:01]} 8. d5 {[%clk 0:00:01]}  Nb8 {[%clk 0:00:01]} 9. e4 {[%clk 0:00:01]}  Nh7 {[%clk 0:00:01]} 10. Ne1 {[%clk 0:00:01]}  f5 {[%clk 0:00:01]} 11. f4 {[%clk 0:00:01]}  exf4 {[%clk 0:00:01]} 12. Bxf4 {[%clk 0:00:01]}  Na6 {[%clk 0:00:01]} 13. Nd3 {[%clk 0:00:01]}  fxe4 {[%clk 0:00:01]} 14. Nxe4 {[%clk 0:00:01]}  Nf6 {[%clk 0:00:01]} 15. Qd2 {[%clk 0:00:01]}  Bf5 {[%clk 0:00:01]} 16. Rae1 {[%clk 0:00:01]}  Qd7 {[%clk 0:00:01]} 17. b3 {[%clk 0:00:01]}  Rae8 {[%clk 0:00:01]} 18. Ndf2 {[%clk 0:00:01]}  Nh7 {[%clk 0:00:01]} 19. h4 {[%clk 0:00:01]}  b6 {[%clk 0:00:01]} 20. Kh2 {[%clk 0:00:01]}  Nc5 {[%clk 0:00:01]} 21. Nxc5 {[%clk 0:00:01]}  bxc5 {[%clk 0:00:01]} 22. Be4 {[%clk 0:00:01]}  Bxe4 {[%clk 0:00:00]} 23. Nxe4 {[%clk 0:00:01]}  Nf6 {[%clk 0:00:00]} 24. Nxf6+ {[%clk 0:00:00]}  Bxf6 {[%clk 0:00:00]} 25. Rxe8 {[%clk 0:00:00]}  Rxe8 {[%clk 0:00:00]} 26. Re1 {[%clk 0:00:00]}  Rxe1 {[%clk 0:00:00]} 27. Qxe1 {[%clk 0:00:00]}  Qf5 {[%clk 0:00:00]} 28. Qd2 {[%clk 0:00:00]}  g5 {[%clk 0:00:00]} 29. hxg5 {[%clk 0:00:00]}  hxg5 {[%clk 0:00:00]} 30. Be3 {[%clk 0:00:00]}  Kg7 {[%clk 0:00:00]} 31. Qf2 {[%clk 0:00:00]}  Qe4 {[%clk 0:00:00]} 32. Bd2 {[%clk 0:00:00]}  g4 {[%clk 0:00:00]} 33. Qf4 {[%clk 0:00:00]}  Qh7+ {[%clk 0:00:00]} 34. Kg2 {[%clk 0:00:00]}  Qh3+ {[%clk 0:00:00]} 35. Kf2 {[%clk 0:00:00]}  Qh2+ {[%clk 0:00:00]} 36. Ke1 {[%clk 0:00:00]}  Qh1+ {[%clk 0:00:00]} 37. Ke2 {[%clk 0:00:00]}  Qh5 {[%clk 0:00:00]} 38. Kd3 {[%clk 0:00:00]}  Be5 {[%clk 0:00:00]} 39. Qe4 {[%clk 0:00:00]}  Qg6 {[%clk 0:00:00]} 40. Qxg6+ {[%clk 0:00:00]}  Kxg6 {[%clk 0:00:00]} 41. Be1 {[%clk 0:00:00]}  Kf5 {[%clk 0:00:00]} 42. Ke3 {[%clk 0:00:00]}  Kf6 {[%clk 0:00:00]} 43. Ke4 {[%clk 0:00:00]}  Ke7 {[%clk 0:00:00]} 44. Bf2 {[%clk 0:00:00]}  Kf6 {[%clk 0:00:00]} 45. Be1 {[%clk 0:00:00]}  Kg6 {[%clk 0:00:00]} 46. Bf2 {[%clk 0:00:00]}  Kf6 {[%clk 0:00:00]} 47. a3 {[%clk 0:00:00]}  a6 {[%clk 0:00:00]} 48. b4 {[%clk 0:00:00]}  cxb4 {[%clk 0:00:00]} 49. axb4 {[%clk 0:00:00]}  Kg6 {[%clk 0:00:00]} 50. c5 {[%clk 0:00:00]}  Kf6 {[%clk 0:00:00]} 51. c6 {[%clk 0:00:00]}  Kg6 {[%clk 0:00:00]} 52. Be1 {[%clk 0:00:00]}  Kf6 {[%clk 0:00:00]} 53. Bf2 {[%clk 0:00:00]}  Kg6 {[%clk 0:00:00]} 54. Be1 {[%clk 0:00:00]}  Kf6 {[%clk 0:00:00]} 55. Bf2 {[%clk 0:00:00]} 1/2-1/2


[Site "https://www.chess.com"]

[Event "Titled Tuesday Blitz May 2 Early 2023"]
[White "Suleymanli, Aydin"]
[Black "Soham Kamotra"]
[WhiteFideId "13413937"]
[BlackFideId "46647490"]
[WhiteElo "2559"]
[BlackElo "2209"]
[Result "1-0"]
[Round "10"]
[TimeControl "180+2"]
[Date "2023.05.03"]
[WhiteClock "0:00:00"]
[BlackClock "0:00:00"]

1. e4 {[%clk 0:00:01]}  c6 {[%clk 0:00:01]} 2. Nf3 {[%clk 0:00:01]}  d5 {[%clk 0:00:01]} 3. Nc3 {[%clk 0:00:01]}  Bg4 {[%clk 0:00:01]} 4. h3 {[%clk 0:00:01]}  Bxf3 {[%clk 0:00:01]} 5. Qxf3 {[%clk 0:00:01]}  e6 {[%clk 0:00:01]} 6. g3 {[%clk 0:00:01]}  Nf6 {[%clk 0:00:01]} 7. Bg2 {[%clk 0:00:01]}  dxe4 {[%clk 0:00:01]} 8. Nxe4 {[%clk 0:00:01]}  Nxe4 {[%clk 0:00:01]} 9. Qxe4 {[%clk 0:00:01]}  Qd5 {[%clk 0:00:01]} 10. d4 {[%clk 0:00:01]}  Nd7 {[%clk 0:00:01]} 11. O-O {[%clk 0:00:01]}  Qxe4 {[%clk 0:00:01]} 12. Bxe4 {[%clk 0:00:01]}  Bd6 {[%clk 0:00:01]} 13. a4 {[%clk 0:00:01]}  a5 {[%clk 0:00:01]} 14. c3 {[%clk 0:00:01]}  O-O-O {[%clk 0:00:01]} 15. Kg2 {[%clk 0:00:01]}  Nf6 {[%clk 0:00:01]} 16. Bf3 {[%clk 0:00:01]}  Kc7 {[%clk 0:00:01]} 17. Re1 {[%clk 0:00:01]}  Rhe8 {[%clk 0:00:01]} 18. Bg5 {[%clk 0:00:01]}  h6 {[%clk 0:00:01]} 19. Be3 {[%clk 0:00:01]}  Nd5 {[%clk 0:00:01]} 20. Bd2 {[%clk 0:00:01]}  e5 {[%clk 0:00:01]} 21. c4 {[%clk 0:00:01]}  Nb4 {[%clk 0:00:01]} 22. c5 {[%clk 0:00:01]}  Bf8 {[%clk 0:00:01]} 23. Bxb4 {[%clk 0:00:01]}  axb4 {[%clk 0:00:01]} 24. dxe5 {[%clk 0:00:01]}  Bxc5 {[%clk 0:00:01]} 25. Re2 {[%clk 0:00:01]}  Bd4 {[%clk 0:00:01]} 26. Rae1 {[%clk 0:00:01]}  Ra8 {[%clk 0:00:00]} 27. e6 {[%clk 0:00:00]}  Rxe6 {[%clk 0:00:00]} 28. Rxe6 {[%clk 0:00:00]}  fxe6 {[%clk 0:00:00]} 29. b3 {[%clk 0:00:00]}  e5 {[%clk 0:00:00]} 30. Re2 {[%clk 0:00:00]}  Ra5 {[%clk 0:00:00]} 31. Be4 {[%clk 0:00:00]}  Kb6 {[%clk 0:00:00]} 32. Rc2 {[%clk 0:00:00]}  Ra8 {[%clk 0:00:00]} 33. h4 {[%clk 0:00:00]}  Rd8 {[%clk 0:00:00]} 34. Rd2 {[%clk 0:00:00]}  Rf8 {[%clk 0:00:00]} 35. Bd3 {[%clk 0:00:00]}  Bc3 {[%clk 0:00:00]} 36. Re2 {[%clk 0:00:00]}  Kc5 {[%clk 0:00:00]} 37. Re4 {[%clk 0:00:00]}  Rd8 {[%clk 0:00:00]} 38. Bc4 {[%clk 0:00:00]}  Rd2 {[%clk 0:00:00]} 39. Rg4 {[%clk 0:00:00]}  Bd4 {[%clk 0:00:00]} 40. Rxg7 {[%clk 0:00:00]}  Rxf2+ {[%clk 0:00:00]} 41. Kh3 {[%clk 0:00:00]}  b6 {[%clk 0:00:00]} 42. g4 {[%clk 0:00:00]}  e4 {[%clk 0:00:00]} 43. Re7 {[%clk 0:00:00]}  e3 {[%clk 0:00:00]} 44. g5 {[%clk 0:00:00]}  hxg5 {[%clk 0:00:00]} 45. hxg5 {[%clk 0:00:00]}  Rf5 {[%clk 0:00:00]} 46. Kg4 {[%clk 0:00:00]}  Re5 {[%clk 0:00:00]} 47. Rxe5+ {[%clk 0:00:00]}  Bxe5 {[%clk 0:00:00]} 48. Kf5 {[%clk 0:00:00]}  Kd4 {[%clk 0:00:00]} 49. Ke6 {[%clk 0:00:00]}  Ke4 {[%clk 0:00:00]} 50. g6 {[%clk 0:00:00]}  Bc3 {[%clk 0:00:00]} 51. Kd7 {[%clk 0:00:00]}  Bd4 {[%clk 0:00:00]} 52. Kxc6 {[%clk 0:00:00]}  Kf3 {[%clk 0:00:00]} 53. Kd5 {[%clk 0:00:00]} 1-0


[Site "https://www.chess.com"]

[Event "Titled Tuesday Blitz May 2 Early 2023"]
[White "Sarana, Alexey"]
[Black "Golichenko, Ilija"]
[WhiteFideId "24133795"]
[BlackFideId "14117223"]
[WhiteElo "2714"]
[BlackElo "2339"]
[Result "1-0"]
[Round "10"]
[TimeControl "180+2"]
[Date "2023.05.03"]
[WhiteClock "0:00:00"]
[BlackClock "0:00:00"]

1. d4 {[%clk 0:00:01]}  Nf6 {[%clk 0:00:01]} 2. c4 {[%clk 0:00:01]}  e6 {[%clk 0:00:01]} 3. Nc3 {[%clk 0:00:01]}  Bb4 {[%clk 0:00:01]} 4. e3 {[%clk 0:00:01]}  O-O {[%clk 0:00:01]} 5. Bd3 {[%clk 0:00:01]}  d5 {[%clk 0:00:01]} 6. a3 {[%clk 0:00:01]}  Bxc3+ {[%clk 0:00:01]} 7. bxc3 {[%clk 0:00:01]}  c5 {[%clk 0:00:01]} 8. cxd5 {[%clk 0:00:01]}  exd5 {[%clk 0:00:01]} 9. Ne2 {[%clk 0:00:01]}  c4 {[%clk 0:00:01]} 10. Bc2 {[%clk 0:00:01]}  Re8 {[%clk 0:00:01]} 11. f3 {[%clk 0:00:01]}  Nbd7 {[%clk 0:00:01]} 12. g4 {[%clk 0:00:01]}  Nf8 {[%clk 0:00:01]} 13. Ng3 {[%clk 0:00:01]}  Qa5 {[%clk 0:00:01]} 14. Bd2 {[%clk 0:00:01]}  Ng6 {[%clk 0:00:01]} 15. O-O {[%clk 0:00:01]}  Qc7 {[%clk 0:00:01]} 16. g5 {[%clk 0:00:01]}  Nd7 {[%clk 0:00:01]} 17. e4 {[%clk 0:00:01]}  dxe4 {[%clk 0:00:01]} 18. fxe4 {[%clk 0:00:01]}  b6 {[%clk 0:00:01]} 19. Qh5 {[%clk 0:00:01]}  Bb7 {[%clk 0:00:01]} 20. Rae1 {[%clk 0:00:01]}  Rad8 {[%clk 0:00:01]} 21. Nf5 {[%clk 0:00:01]}  Nc5 {[%clk 0:00:01]} 22. d5 {[%clk 0:00:01]}  Nd3 {[%clk 0:00:00]} 23. Bxd3 {[%clk 0:00:01]}  cxd3 {[%clk 0:00:00]} 24. Rf3 {[%clk 0:00:01]}  Qc5+ {[%clk 0:00:00]} 25. Kf1 {[%clk 0:00:01]}  Qxa3 {[%clk 0:00:00]} 26. Rh3 {[%clk 0:00:01]}  Nf8 {[%clk 0:00:00]} 27. Rf3 {[%clk 0:00:00]}  Qa2 {[%clk 0:00:00]} 28. Nh6+ {[%clk 0:00:00]}  gxh6 {[%clk 0:00:00]} 29. Qxf7+ {[%clk 0:00:00]}  Kh8 {[%clk 0:00:00]} 30. gxh6 {[%clk 0:00:00]} 1-0


[Site "https://www.chess.com"]

[Event "Titled Tuesday Blitz May 2 Early 2023"]
[White "Gabrielian, Artur"]
[Black "Lenaerts, Lennert"]
[WhiteFideId "4131002"]
[BlackFideId "211435"]
[WhiteElo "2432"]
[BlackElo "2334"]
[Result "0-1"]
[Round "10"]
[TimeControl "180+2"]
[Date "2023.05.03"]
[WhiteClock "0:00:00"]
[BlackClock "0:00:00"]

1. d4 {[%clk 0:00:01]}  d5 {[%clk 0:00:01]} 2. Bg5 {[%clk 0:00:01]}  f6 {[%clk 0:00:01]} 3. Bd2 {[%clk 0:00:01]}  c5 {[%clk 0:00:01]} 4. e3 {[%clk 0:00:01]}  Nc6 {[%clk 0:00:01]} 5. Nf3 {[%clk 0:00:01]}  Bf5 {[%clk 0:00:01]} 6. dxc5 {[%clk 0:00:01]}  e5 {[%clk 0:00:01]} 7. b4 {[%clk 0:00:01]}  a5 {[%clk 0:00:01]} 8. b5 {[%clk 0:00:01]}  Nb4 {[%clk 0:00:01]} 9. Bxb4 {[%clk 0:00:01]}  axb4 {[%clk 0:00:01]} 10. c6 {[%clk 0:00:01]}  bxc6 {[%clk 0:00:01]} 11. bxc6 {[%clk 0:00:01]}  Ne7 {[%clk 0:00:01]} 12. Nbd2 {[%clk 0:00:01]}  Nxc6 {[%clk 0:00:01]} 13. Bb5 {[%clk 0:00:01]}  Qb6 {[%clk 0:00:01]} 14. Qe2 {[%clk 0:00:01]}  Be7 {[%clk 0:00:01]} 15. Nh4 {[%clk 0:00:00]}  Be6 {[%clk 0:00:01]} 16. g4 {[%clk 0:00:00]}  g6 {[%clk 0:00:00]} 17. Rg1 {[%clk 0:00:00]}  O-O {[%clk 0:00:00]} 18. Nf5 {[%clk 0:00:00]}  Bc5 {[%clk 0:00:00]} 19. Nb3 {[%clk 0:00:00]}  Kh8 {[%clk 0:00:00]} 20. Bxc6 {[%clk 0:00:00]}  Qxc6 {[%clk 0:00:00]} 21. Nh4 {[%clk 0:00:00]}  Be7 {[%clk 0:00:00]} 22. Nf3 {[%clk 0:00:00]}  d4 {[%clk 0:00:00]} 23. Nfd2 {[%clk 0:00:00]}  Qxc2 {[%clk 0:00:00]} 24. exd4 {[%clk 0:00:00]}  Bc4 {[%clk 0:00:00]} 25. Qxc4 {[%clk 0:00:00]}  Qb2 {[%clk 0:00:00]} 26. Rb1 {[%clk 0:00:00]}  Qxa2 {[%clk 0:00:00]} 27. dxe5 {[%clk 0:00:00]}  fxe5 {[%clk 0:00:00]} 28. Qe4 {[%clk 0:00:00]}  Bg5 {[%clk 0:00:00]} 29. Rg3 {[%clk 0:00:00]}  Rad8 {[%clk 0:00:00]} 30. Rd3 {[%clk 0:00:00]}  Rxd3 {[%clk 0:00:00]} 31. Qxd3 {[%clk 0:00:00]}  Rd8 {[%clk 0:00:00]} 32. Qe4 {[%clk 0:00:00]}  Bxd2+ {[%clk 0:00:00]} 33. Nxd2 {[%clk 0:00:00]}  Qxd2+ {[%clk 0:00:00]} 34. Kf1 {[%clk 0:00:00]}  Qd4 {[%clk 0:00:00]} 35. Qb7 {[%clk 0:00:00]}  Qd3+ {[%clk 0:00:00]} 36. Kg2 {[%clk 0:00:00]}  Qxb1 {[%clk 0:00:00]} 37. Qe7 {[%clk 0:00:00]}  Qe4+ {[%clk 0:00:00]} 38. f3 {[%clk 0:00:00]}  Rd2+ {[%clk 0:00:00]} 39. Kh3 {[%clk 0:00:00]}  Qxf3+ {[%clk 0:00:00]} 40. Kh4 {[%clk 0:00:00]}  Rxh2+ {[%clk 0:00:00]} 41. Kg5 {[%clk 0:00:00]}  Qf4# {[%clk 0:00:00]} 0-1


[Site "https://www.chess.com"]

[Event "Titled Tuesday Blitz May 2 Early 2023"]
[White "Molina, Roberto Junio Brito"]
[Black "Novik, Maxim"]
[WhiteFideId "2109450"]
[BlackFideId "4102924"]
[WhiteElo "2376"]
[BlackElo "2287"]
[Result "1-0"]
[Round "10"]
[TimeControl "180+2"]
[Date "2023.05.03"]
[WhiteClock "0:00:01"]
[BlackClock "0:00:01"]

1. d4 {[%clk 0:00:01]}  Nf6 {[%clk 0:00:01]} 2. c4 {[%clk 0:00:01]}  g6 {[%clk 0:00:01]} 3. Nc3 {[%clk 0:00:01]}  d5 {[%clk 0:00:01]} 4. Nf3 {[%clk 0:00:01]}  Bg7 {[%clk 0:00:01]} 5. Qb3 {[%clk 0:00:01]}  dxc4 {[%clk 0:00:01]} 6. Qxc4 {[%clk 0:00:01]}  O-O {[%clk 0:00:01]} 7. e4 {[%clk 0:00:01]}  Na6 {[%clk 0:00:01]} 8. e5 {[%clk 0:00:01]}  Nd7 {[%clk 0:00:01]} 9. Be3 {[%clk 0:00:01]}  Nb6 {[%clk 0:00:01]} 10. Qb3 {[%clk 0:00:01]}  Be6 {[%clk 0:00:01]} 11. Qd1 {[%clk 0:00:01]}  c5 {[%clk 0:00:01]} 12. dxc5 {[%clk 0:00:01]}  Nd7 {[%clk 0:00:01]} 13. c6 {[%clk 0:00:01]}  Nxe5 {[%clk 0:00:01]} 14. cxb7 {[%clk 0:00:01]}  Nxf3+ {[%clk 0:00:01]} 15. gxf3 {[%clk 0:00:01]}  Rb8 {[%clk 0:00:01]} 16. Qxd8 {[%clk 0:00:01]}  Rfxd8 {[%clk 0:00:01]} 17. Bxa6 {[%clk 0:00:01]} 1-0


[Site "https://www.chess.com"]

[Event "Titled Tuesday Blitz May 2 Early 2023"]
[White "Bacallao Alonso, Yusnel"]
[Black "Iskusnyh, Sergei"]
[WhiteFideId "3507416"]
[BlackFideId "4120027"]
[WhiteElo "2561"]
[BlackElo "2492"]
[Result "0-1"]
[Round "10"]
[TimeControl "180+2"]
[Date "2023.05.03"]
[WhiteClock "0:00:00"]
[BlackClock "0:00:00"]

1. d4 {[%clk 0:00:01]}  d5 {[%clk 0:00:01]} 2. c4 {[%clk 0:00:01]}  c6 {[%clk 0:00:01]} 3. cxd5 {[%clk 0:00:01]}  cxd5 {[%clk 0:00:01]} 4. Bf4 {[%clk 0:00:01]}  Nc6 {[%clk 0:00:01]} 5. e3 {[%clk 0:00:01]}  Bf5 {[%clk 0:00:01]} 6. Nc3 {[%clk 0:00:01]}  e6 {[%clk 0:00:01]} 7. Nf3 {[%clk 0:00:01]}  Bd6 {[%clk 0:00:01]} 8. Bg5 {[%clk 0:00:01]}  Nf6 {[%clk 0:00:01]} 9. Qb3 {[%clk 0:00:01]}  O-O {[%clk 0:00:01]} 10. Be2 {[%clk 0:00:01]}  Nb4 {[%clk 0:00:01]} 11. Rc1 {[%clk 0:00:01]}  Nd3+ {[%clk 0:00:01]} 12. Bxd3 {[%clk 0:00:01]}  Bxd3 {[%clk 0:00:01]} 13. Bxf6 {[%clk 0:00:01]}  Qxf6 {[%clk 0:00:01]} 14. Nxd5 {[%clk 0:00:00]}  Qg6 {[%clk 0:00:01]} 15. Kd2 {[%clk 0:00:00]}  Ba6 {[%clk 0:00:00]} 16. Ne5 {[%clk 0:00:00]}  Qxg2 {[%clk 0:00:00]} 17. Kc2 {[%clk 0:00:00]}  Bxe5 {[%clk 0:00:00]} 18. Ne7+ {[%clk 0:00:00]}  Kh8 {[%clk 0:00:00]} 19. dxe5 {[%clk 0:00:00]}  Qe4+ {[%clk 0:00:00]} 0-1


[Site "https://www.chess.com"]